[Event "Championnat du monde jeunes U12F"]
[Date "2024.11.15"]
[White "Laurincova, Timea"]
[Black "Baruch, Amit"]
[WhiteElo "1549"]
[BlackElo "1747"]
[Round "1.29"]
[Result "0-1"]
[TimeControl "5400+30"]

1. e4 {[%clk 1:30:59]} 1... e5 {[%clk 1:30:50]} 2. Nf3 {[%clk 1:31:20]} 2... Nc6
{[%clk 1:31:09]} 3. Bc4 {[%clk 1:31:23]} 3... Bc5 {[%clk 1:31:28]} 4. c3 {[%clk
1:31:35]} 4... Nf6 {[%clk 1:31:37]} 5. d3 {[%clk 1:31:51]} 5... d6 {[%clk
1:31:16]} 6. h3 {[%clk 1:32:12]} 6... a6 {[%clk 1:31:20]} 7. Nbd2 {[%clk
1:31:58]} 7... Ba7 {[%clk 1:31:17]} 8. Nf1 {[%clk 1:31:04]} 8... d5 {[%clk
1:30:37]} 9. exd5 {[%clk 1:30:14]} 9... Nxd5 {[%clk 1:30:54]} 10. Ng3 {[%clk
1:29:39]} 10... Be6 {[%clk 1:27:01]} 11. Bb3 {[%clk 1:27:05]} 11... Qd7 {[%clk
1:25:58]} 12. Ba4 {[%clk 1:21:21]} 12... f6 {[%clk 1:23:00]} 13. Bxc6 {[%clk
1:15:26]} 13... Qxc6 {[%clk 1:22:56]} 14. d4 {[%clk 1:15:35]} 14... exd4 {[%clk
1:18:55]} 15. Nxd4 {[%clk 1:15:32]} 15... Bxd4 {[%clk 1:18:56]} 16. Qxd4 {[%clk
1:15:18]} 16... O-O-O {[%clk 1:18:50]} 17. O-O {[%clk 1:12:00]} 17... Rhe8
{[%clk 1:15:40]} 18. Qh4 {[%clk 1:06:54]} 18... Nb6 {[%clk 1:13:11]} 19. Be3
{[%clk 1:02:37]} 19... Nc4 {[%clk 1:10:46]} 20. Bc1 {[%clk 0:58:13]} 20... Ne5
{[%clk 1:00:52]} 21. a3 {[%clk 0:55:25]} 21... Bc4 {[%clk 0:59:28]} 22. Be3
{[%clk 0:43:37]} 22... Bxf1 {[%clk 0:59:24]} 23. Rxf1 {[%clk 0:43:35]} 23... Nc4
{[%clk 0:58:00]} 24. Qg4+ {[%clk 0:42:58]} 24... Qe6 {[%clk 0:57:05]} 25. Qxe6+
{[%clk 0:37:40]} 25... Rxe6 {[%clk 0:57:25]} 26. Bc1 {[%clk 0:37:12]} 26... Red6
{[%clk 0:52:37]} 27. Nf5 {[%clk 0:32:37]} 27... Rd1 {[%clk 0:51:55]} 28. Ne3
{[%clk 0:31:53]} 28... Rxf1+ {[%clk 0:51:56]} 29. Kxf1 {[%clk 0:31:54]} 29...
Nxe3+ {[%clk 0:51:19]} 30. Bxe3 {[%clk 0:32:04]} 30... Rd1+ {[%clk 0:51:41]} 31.
Ke2 {[%clk 0:32:15]} 31... Rb1 {[%clk 0:52:01]} 32. b4 {[%clk 0:32:05]} 32...
Ra1 33. Kd2 {[%clk 0:32:14]} 33... Rxa3 {[%clk 0:50:37]} 34. Kc2 {[%clk
0:32:18]} 34... Ra2+ {[%clk 0:50:54]} 35. Kb3 {[%clk 0:32:35]} 35... Re2 {[%clk
0:50:42]} 36. g3 {[%clk 0:32:53]} 36... Kd7 {[%clk 0:49:48]} 37. Kc4 {[%clk
0:32:53]} 37... b6 {[%clk 0:48:13]} 38. h4 {[%clk 0:31:54]} 38... Rb2 {[%clk
0:46:18]} 39. Bd4 {[%clk 0:30:09]} 39... Kc6 {[%clk 0:44:24]} 40. Be3 {[%clk
0:29:35]} 40... a5 {[%clk 0:43:24]} 41. bxa5 {[%clk 0:29:15]} 41... bxa5 {[%clk
0:43:41]} 42. Bc5 {[%clk 0:29:38]} 42... a4 {[%clk 0:42:39]} 43. Bf8 {[%clk
0:27:14]} 43... Kb6 {[%clk 0:39:55]} 44. Ba3 {[%clk 0:26:24]} 44... Rb5 {[%clk
0:32:14]} 45. Bb4 {[%clk 0:25:29]} 45... c5 {[%clk 0:30:38]} 46. Ba3 {[%clk
0:25:27]} 46... Kc6 {[%clk 0:30:31]} 47. f3 {[%clk 0:24:27]} 47... Rb3 {[%clk
0:30:22]} 48. Bxc5 {[%clk 0:23:37]} 48... Rxc3+ {[%clk 0:30:30]} 49. Kxc3 {[%clk
0:23:41]} 49... Kxc5 {[%clk 0:30:52]} 50. g4 {[%clk 0:23:38]} 50... Kd5 {[%clk
0:30:46]} 51. Kb4 {[%clk 0:22:58]} 51... Ke5 {[%clk 0:30:56]} 52. Kxa4 {[%clk
0:22:41]} 52... Kf4 {[%clk 0:31:14]} 53. Kb4 {[%clk 0:22:53]} 53... Kxf3 {[%clk
0:31:21]} 54. g5 {[%clk 0:23:09]} 54... f5 {[%clk 0:30:17]} 55. h5 {[%clk
0:22:55]} 55... f4 {[%clk 0:30:06]} 56. h6 {[%clk 0:23:01]} 56... gxh6 {[%clk
0:29:36]} 57. gxh6 {[%clk 0:23:24]} 57... Ke3 {[%clk 0:29:36]} 0-1

[Variant "Standard"]
[Site "Europe Echecs"]

[Event "Championnat du monde jeunes U12F"]
[Date "2024.11.15"]
[White "Sabou, Stefania Theodora"]
[Black "Li, Yeeshuen"]
[WhiteElo "1736"]
[BlackElo "1546"]
[Round "1.30"]
[Result "1-0"]
[TimeControl "5400+30"]

1. c4 {[%clk 1:30:55]} 1... e5 {[%clk 1:30:53]} 2. Nc3 {[%clk 1:31:13]} 2... Nc6
{[%clk 1:30:57]} 3. g3 {[%clk 1:31:27]} 3... Nf6 {[%clk 1:29:39]} 4. Bg2 {[%clk
1:31:34]} 4... d6 {[%clk 1:26:44]} 5. e4 {[%clk 1:31:30]} 5... Nd4 {[%clk
1:23:16]} 6. Nge2 {[%clk 1:30:27]} 6... c5 {[%clk 1:18:19]} 7. d3 {[%clk
1:29:51]} 7... Bg4 {[%clk 1:14:38]} 8. h3 {[%clk 1:28:14]} 8... Bf3 {[%clk
1:12:45]} 9. O-O {[%clk 1:28:21]} 9... h5 {[%clk 1:03:16]} 10. Bxf3 {[%clk
1:27:52]} 10... Nxf3+ {[%clk 1:03:37]} 11. Kg2 {[%clk 1:28:21]} 11... Nd4 {[%clk
1:03:53]} 12. Bg5 {[%clk 1:27:54]} 12... Ne6 {[%clk 0:59:11]} 13. Bxf6 {[%clk
1:23:50]} 13... gxf6 {[%clk 0:53:44]} 14. Nd5 {[%clk 1:22:53]} 14... Be7 {[%clk
0:51:15]} 15. f4 {[%clk 1:20:21]} 15... Nc7 {[%clk 0:44:10]} 16. Qa4+ {[%clk
1:17:46]} 16... Kf8 {[%clk 0:43:03]} 17. Nec3 {[%clk 1:14:48]} 17... a6 {[%clk
0:40:29]} 18. Nb6 {[%clk 1:11:43]} 18... Ra7 {[%clk 0:39:57]} 19. Kh2 {[%clk
1:03:53]} 19... Na8 {[%clk 0:34:18]} 20. Nbd5 {[%clk 1:01:23]} 20... Qe8 {[%clk
0:32:35]} 21. Qxe8+ {[%clk 0:59:23]} 21... Kxe8 {[%clk 0:32:56]} 22. fxe5 {[%clk
0:59:36]} 22... fxe5 {[%clk 0:32:26]} 23. Nxe7 {[%clk 0:59:18]} 23... Kxe7
{[%clk 0:32:46]} 24. Nd5+ {[%clk 0:59:38]} 24... Kf8 {[%clk 0:30:07]} 25. Rf6
{[%clk 0:59:21]} 25... b5 {[%clk 0:26:45]} 26. Rxd6 {[%clk 0:58:24]} 26... Ke8
{[%clk 0:21:34]} 27. Rf1 {[%clk 0:55:23]} 27... Nc7 {[%clk 0:17:45]} 28. Nxc7+
{[%clk 0:55:10]} 28... Rxc7 {[%clk 0:18:08]} 29. Rxa6 {[%clk 0:54:48]} 29... Ke7
{[%clk 0:17:33]} 30. cxb5 {[%clk 0:54:10]} 30... Rd7 {[%clk 0:15:03]} 31. Rf3
{[%clk 0:53:57]} 31... Rhd8 {[%clk 0:12:04]} 32. Raf6 {[%clk 0:53:37]} 32... Kf8
{[%clk 0:10:51]} 33. a4 {[%clk 0:53:25]} 33... c4 {[%clk 0:10:45]} 34. dxc4
{[%clk 0:53:26]} 34... Rd2+ {[%clk 0:10:15]} 35. Rf2 {[%clk 0:53:51]} 35... R2d3
{[%clk 0:10:14]} 36. Rxf7+ {[%clk 0:53:40]} 36... Kg8 {[%clk 0:10:34]} 37. R7f5
{[%clk 0:53:33]} 37... Rb3 {[%clk 0:10:20]} 38. Rxe5 {[%clk 0:53:09]} 38... Rdd3
{[%clk 0:10:28]} 39. Rg5+ {[%clk 0:52:47]} 39... Kh8 {[%clk 0:10:43]} 40. Rxh5+
{[%clk 0:52:50]} 40... Kg7 {[%clk 0:10:52]} 41. Rg5+ {[%clk 0:52:59]} 41... Kh6
{[%clk 0:11:09]} 42. Rg4 {[%clk 0:53:19]} 42... Rf3 {[%clk 0:11:08]} 43. Rxf3
{[%clk 0:53:32]} 43... Rxf3 {[%clk 0:11:29]} 44. Kg2 {[%clk 0:53:56]} 44... Rb3
{[%clk 0:11:50]} 45. Rf4 {[%clk 0:54:17]} 45... Rxb2+ {[%clk 0:12:07]} 46. Rf2
{[%clk 0:54:33]} 46... Rxf2+ {[%clk 0:12:25]} 47. Kxf2 {[%clk 0:54:56]} 47...
Kg6 {[%clk 0:12:43]} 48. b6 {[%clk 0:55:16]} 48... Kh5 {[%clk 0:13:04]} 49. b7
{[%clk 0:55:30]} 49... Kg5 {[%clk 0:13:29]} 50. b8=Q {[%clk 0:55:49]} 50... Kh5
{[%clk 0:13:53]} 51. Qg8 {[%clk 0:55:33]} 51... Kh6 {[%clk 0:14:16]} 52. h4
{[%clk 0:55:52]} 52... Kh5 {[%clk 0:14:43]} 53. Qg5# {[%clk 0:56:18]} 1-0

[Variant "Standard"]
[Site "Europe Echecs"]

[Event "Championnat du monde jeunes U12F"]
[Date "2024.11.15"]
[White "Hiznicenco, Valeria"]
[Black "Ivaschenko, Anna"]
[WhiteElo "1513"]
[BlackElo "1732"]
[Round "1.31"]
[Result "0-1"]
[TimeControl "5400+30"]

1. e4 {[%clk 1:30:57]} 1... e6 {[%clk 1:30:57]} 2. Nf3 {[%clk 1:31:16]} 2... d5
{[%clk 1:31:23]} 3. Nc3 {[%clk 1:31:21]} 3... Nf6 {[%clk 1:31:03]} 4. e5 {[%clk
1:31:18]} 4... Nfd7 {[%clk 1:31:23]} 5. d4 {[%clk 1:30:58]} 5... c5 {[%clk
1:31:44]} 6. dxc5 {[%clk 1:27:44]} 6... Nc6 {[%clk 1:31:08]} 7. Bb5 {[%clk
1:22:21]} 7... Bxc5 {[%clk 1:29:37]} 8. O-O {[%clk 1:20:55]} 8... O-O {[%clk
1:29:39]} 9. Re1 {[%clk 1:06:09]} 9... Qb6 {[%clk 1:24:08]} 10. Qe2 {[%clk
1:00:35]} 10... Nd4 {[%clk 1:08:45]} 11. Qd3 {[%clk 0:52:32]} 11... Nxb5 {[%clk
1:07:41]} 12. Nxb5 {[%clk 0:39:36]} 12... Bxf2+ {[%clk 1:07:46]} 13. Kh1 {[%clk
0:37:29]} 13... Bxe1 {[%clk 1:07:52]} 14. Nxe1 {[%clk 0:32:36]} 14... Nxe5
{[%clk 1:07:47]} 15. Qe2 {[%clk 0:30:06]} 15... Ng4 {[%clk 1:03:09]} 16. Qxg4
{[%clk 0:24:52]} 16... Qxb5 {[%clk 1:03:27]} 17. Nf3 {[%clk 0:24:28]} 17... e5
{[%clk 1:01:37]} 18. Qg3 {[%clk 0:24:13]} 18... e4 {[%clk 1:01:27]} 19. Bh6
{[%clk 0:22:23]} 19... Qxb2 {[%clk 1:00:58]} 20. Rd1 {[%clk 0:14:32]} 20... exf3
{[%clk 1:00:24]} 21. gxf3 {[%clk 0:14:48]} 21... Kh8 {[%clk 1:00:17]} 22. Bf4
{[%clk 0:13:38]} 22... Re8 {[%clk 0:59:01]} 23. Qg5 {[%clk 0:12:07]} 23... Qf6
{[%clk 0:58:02]} 24. Qg3 {[%clk 0:10:20]} 24... Bf5 {[%clk 0:57:52]} 25. Rg1
{[%clk 0:08:00]} 25... Bxc2 {[%clk 0:57:06]} 26. Bg5 {[%clk 0:07:04]} 26... Qf5
{[%clk 0:55:56]} 27. h4 {[%clk 0:06:06]} 27... f6 {[%clk 0:55:08]} 28. Bh6
{[%clk 0:05:46]} 28... g6 {[%clk 0:54:55]} 29. Rg2 {[%clk 0:04:25]} 29... Re7
{[%clk 0:54:28]} 30. Kh2 {[%clk 0:03:47]} 30... Rae8 {[%clk 0:54:31]} 31. Qd6
{[%clk 0:02:31]} 31... Qe5+ {[%clk 0:52:58]} 32. Qxe5 {[%clk 0:02:43]} 32...
Rxe5 {[%clk 0:53:23]} 33. Kh3 {[%clk 0:03:00]} 33... Bf5+ {[%clk 0:53:44]} 34.
Kh2 {[%clk 0:03:21]} 34... Re2 {[%clk 0:54:10]} 35. Rxe2 {[%clk 0:03:35]} 35...
Rxe2+ {[%clk 0:54:21]} 36. Kg3 {[%clk 0:03:41]} 36... d4 {[%clk 0:54:41]} 37. f4
{[%clk 0:03:49]} 37... d3 {[%clk 0:54:58]} 38. Kf3 {[%clk 0:04:04]} 38... Be4+
{[%clk 0:55:13]} 0-1

[Variant "Standard"]
[Site "Europe Echecs"]

[Event "Championnat du monde jeunes U12F"]
[Date "2024.11.15"]
[White "Lukin, Yesenia"]
[Black "Zavivaeva, Angelina"]
[WhiteElo "1732"]
[BlackElo "1499"]
[Round "1.32"]
[Result "1/2-1/2"]
[TimeControl "5400+30"]

1. d4 {[%clk 1:30:43]} 1... d5 {[%clk 1:30:59]} 2. Bf4 {[%clk 1:31:05]} 2... c5
{[%clk 1:27:50]} 3. c3 {[%clk 1:30:50]} 3... cxd4 {[%clk 1:27:21]} 4. cxd4
{[%clk 1:29:59]} 4... Nc6 {[%clk 1:27:26]} 5. e3 {[%clk 1:29:19]} 5... Nf6
{[%clk 1:26:39]} 6. Nd2 {[%clk 1:26:41]} 6... Bf5 {[%clk 1:24:23]} 7. Ngf3
{[%clk 1:24:15]} 7... e6 {[%clk 1:21:40]} 8. a3 {[%clk 1:21:25]} 8... Be7 {[%clk
1:20:25]} 9. Be2 {[%clk 1:19:42]} 9... O-O {[%clk 1:18:13]} 10. O-O {[%clk
1:19:14]} 10... Qb6 {[%clk 1:15:37]} 11. b4 {[%clk 1:13:50]} 11... Ne4 {[%clk
1:12:51]} 12. Nxe4 {[%clk 1:08:17]} 12... Bxe4 {[%clk 1:10:37]} 13. Ne5 {[%clk
1:05:56]} 13... Nxe5 {[%clk 1:10:06]} 14. Bxe5 {[%clk 1:05:20]} 14... Rfc8
{[%clk 1:00:43]} 15. Rc1 {[%clk 1:01:25]} 15... Bd6 {[%clk 0:46:30]} 16. Bxd6
{[%clk 1:00:13]} 16... Qxd6 {[%clk 0:46:59]} 17. Qd2 {[%clk 0:57:51]} 17... Rc6
{[%clk 0:41:58]} 18. Rxc6 {[%clk 0:55:54]} 18... bxc6 {[%clk 0:33:19]} 19. Rc1
{[%clk 0:55:25]} 19... Rb8 {[%clk 0:33:02]} 20. Rc5 {[%clk 0:50:37]} 20... Rb6
{[%clk 0:27:34]} 21. Ra5 {[%clk 0:45:31]} 21... Qe7 {[%clk 0:23:51]} 22. Qc1
{[%clk 0:42:02]} 22... h6 {[%clk 0:23:25]} 23. f3 {[%clk 0:40:40]} 23... Bg6
{[%clk 0:22:34]} 24. Qd1 {[%clk 0:32:15]} 24... Qc7 {[%clk 0:19:00]} 25. Qa4
{[%clk 0:31:55]} 25... Rb7 {[%clk 0:12:45]} 26. Ra6 {[%clk 0:29:57]} 26... e5
{[%clk 0:07:10]} 27. Qxc6 {[%clk 0:28:03]} 27... exd4 {[%clk 0:04:13]} 28. Qxc7
{[%clk 0:25:22]} 28... Rxc7 {[%clk 0:04:37]} 29. exd4 {[%clk 0:25:19]} 29... Rc2
{[%clk 0:02:20]} 30. Kf1 {[%clk 0:20:49]} 30... Rc1+ {[%clk 0:01:10]} 31. Kf2
{[%clk 0:19:30]} 31... Rc2 {[%clk 0:00:50]} 32. Ke3 {[%clk 0:18:52]} 32... Rc3+
{[%clk 0:01:18]} 33. Kd2 {[%clk 0:16:56]} 33... Rc2+ {[%clk 0:01:26]} 34. Kd1
{[%clk 0:15:56]} 34... Rc7 {[%clk 0:01:13]} 35. Ra5 {[%clk 0:14:18]} 35... Bc2+
{[%clk 0:01:13]} 36. Ke1 {[%clk 0:12:36]} 36... Bb3 {[%clk 0:00:51]} 37. Rc5
{[%clk 0:11:32]} 37... Re7 {[%clk 0:01:20]} 38. Kf2 {[%clk 0:11:20]} 38... g6
{[%clk 0:01:13]} 39. Rc3 {[%clk 0:09:51]} 39... Ba2 {[%clk 0:01:01]} 40. Rc2
{[%clk 0:09:39]} 40... Bb1 {[%clk 0:01:15]} 41. Rb2 {[%clk 0:09:31]} 41... Bf5
{[%clk 0:01:18]} 42. b5 {[%clk 0:08:57]} 42... Rb7 {[%clk 0:01:09]} 43. a4
{[%clk 0:08:50]} 43... Kf8 {[%clk 0:00:56]} 44. a5 {[%clk 0:08:50]} 44... Ke7
{[%clk 0:01:17]} 45. b6 {[%clk 0:08:21]} 45... axb6 {[%clk 0:00:38]} 46. Ba6
{[%clk 0:06:34]} 46... Ra7 {[%clk 0:00:34]} 47. axb6 {[%clk 0:06:09]} 47... Ra8
{[%clk 0:00:51]} 48. Bb7 {[%clk 0:06:17]} 48... Rd8 {[%clk 0:00:48]} 49. Bc6
{[%clk 0:06:22]} 49... Kd6 {[%clk 0:00:52]} 50. b7 {[%clk 0:04:24]} 50... Rb8
{[%clk 0:01:06]} 51. Be8 {[%clk 0:03:16]} 51... Be6 {[%clk 0:00:52]} 52. Ba4
{[%clk 0:02:40]} 52... Kc7 {[%clk 0:00:56]} 53. Rc2+ {[%clk 0:02:30]} 53... Kxb7
{[%clk 0:00:37]} 54. Rb2+ {[%clk 0:02:56]} 1/2-1/2

[Variant "Standard"]
[Site "Europe Echecs"]

[Event "Championnat du monde jeunes U12F"]
[Date "2024.11.15"]
[White "Petrusic, Dusica"]
[Black "Xu, Melissa"]
[WhiteElo "1498"]
[BlackElo "1731"]
[Round "1.33"]
[Result "0-1"]
[TimeControl "5400+30"]

1. e4 {[%clk 1:30:57]} 1... c5 {[%clk 1:30:55]} 2. Nf3 {[%clk 1:31:19]} 2... Nc6
{[%clk 1:31:13]} 3. Bb5 {[%clk 1:31:42]} 3... d6 {[%clk 1:30:27]} 4. O-O {[%clk
1:31:40]} 4... Nf6 {[%clk 1:29:58]} 5. Re1 {[%clk 1:31:18]} 5... a6 {[%clk
1:29:45]} 6. Bf1 {[%clk 1:31:33]} 6... e6 {[%clk 1:29:46]} 7. c3 {[%clk
1:29:23]} 7... Be7 {[%clk 1:28:42]} 8. d4 {[%clk 1:28:43]} 8... cxd4 {[%clk
1:28:21]} 9. cxd4 {[%clk 1:29:00]} 9... O-O {[%clk 1:26:50]} 10. Nc3 {[%clk
1:24:37]} 10... b5 {[%clk 1:23:05]} 11. a3 {[%clk 1:22:51]} 11... Bb7 {[%clk
1:22:24]} 12. b4 {[%clk 1:20:44]} 12... Rc8 {[%clk 1:21:35]} 13. Bb2 {[%clk
1:19:49]} 13... Re8 {[%clk 1:17:08]} 14. Qd2 {[%clk 1:13:56]} 14... Qb6 {[%clk
1:13:21]} 15. Rad1 {[%clk 1:10:43]} 15... h6 {[%clk 1:08:33]} 16. h3 {[%clk
1:04:50]} 16... Nh7 {[%clk 1:05:15]} 17. d5 {[%clk 1:02:26]} 17... Nd8 {[%clk
0:58:31]} 18. Qd4 {[%clk 0:58:22]} 18... Qxd4 {[%clk 0:58:10]} 19. Nxd4 {[%clk
0:58:04]} 19... Bf6 {[%clk 0:56:33]} 20. Rd3 {[%clk 0:52:53]} 20... exd5 21. Nf5
{[%clk 0:44:42]} 21... Re6 {[%clk 0:54:31]} 22. Re2 {[%clk 0:41:30]} 22... dxe4
{[%clk 0:53:41]} 23. Rxd6 {[%clk 0:30:33]} 23... Re8 {[%clk 0:50:24]} 24. Rxf6
{[%clk 0:27:57]} 24... Nxf6 {[%clk 0:49:45]} 25. Nd6 {[%clk 0:28:08]} 25... Re6
{[%clk 0:48:42]} 26. Nxc8 {[%clk 0:28:21]} 26... Bxc8 {[%clk 0:49:03]} 27. Rd2
{[%clk 0:26:28]} 27... Nc6 {[%clk 0:47:45]} 28. Nd5 {[%clk 0:25:09]} 28... Nxd5
{[%clk 0:47:14]} 29. Rxd5 {[%clk 0:25:30]} 29... e3 {[%clk 0:45:06]} 30. fxe3
{[%clk 0:23:49]} 30... Rxe3 {[%clk 0:45:18]} 31. Rd6 {[%clk 0:22:30]} 31... Bb7
{[%clk 0:40:06]} 32. Rd7 {[%clk 0:21:27]} 32... Ba8 {[%clk 0:37:33]} 33. Rc7
{[%clk 0:20:42]} 33... Re8 {[%clk 0:36:44]} 34. Bd3 {[%clk 0:18:41]} 34... Nb8
{[%clk 0:33:26]} 35. Bf5 {[%clk 0:17:30]} 35... g6 {[%clk 0:24:31]} 36. Rc8
{[%clk 0:16:43]} 36... Rxc8 {[%clk 0:23:28]} 37. Bxc8 {[%clk 0:17:06]} 37... Bc6
{[%clk 0:19:40]} 38. Be5 {[%clk 0:16:22]} 38... Bd7 {[%clk 0:18:57]} 39. Bb7
{[%clk 0:15:09]} 39... Nc6 {[%clk 0:18:02]} 40. Bg3 {[%clk 0:14:30]} 40... Nd4
{[%clk 0:17:21]} 41. Be5 {[%clk 0:14:00]} 41... Nf5 {[%clk 0:16:44]} 42. Bxa6
{[%clk 0:13:44]} 42... Bc6 {[%clk 0:16:20]} 43. Bc8 {[%clk 0:13:13]} 43... Ne3
{[%clk 0:16:19]} 44. g3 {[%clk 0:12:53]} 44... Nc4 {[%clk 0:16:29]} 45. Bd4
{[%clk 0:11:30]} 45... Nxa3 {[%clk 0:16:42]} 46. Kf2 {[%clk 0:11:14]} 46... Nc4
{[%clk 0:16:37]} 47. Bg4 {[%clk 0:11:07]} 47... Nd6 {[%clk 0:16:37]} 48. Bf3
{[%clk 0:11:11]} 48... Bd7 {[%clk 0:17:00]} 49. h4 {[%clk 0:10:53]} 49... Nf5
{[%clk 0:16:43]} 50. Bc5 {[%clk 0:10:26]} 50... Ng7 {[%clk 0:16:27]} 51. g4
{[%clk 0:09:53]} 51... Ne6 {[%clk 0:16:32]} 52. Kg3 {[%clk 0:09:36]} 52... Kg7
{[%clk 0:16:01]} 53. Bd5 {[%clk 0:09:14]} 53... Nc7 {[%clk 0:15:48]} 54. Bb3
{[%clk 0:08:57]} 54... g5 {[%clk 0:15:27]} 55. hxg5 {[%clk 0:08:56]} 55... hxg5
{[%clk 0:15:42]} 56. Bd4+ {[%clk 0:08:46]} 56... f6 {[%clk 0:15:57]} 57. Bc2
{[%clk 0:08:51]} 57... Ne8 {[%clk 0:15:45]} 58. Bc5 {[%clk 0:08:42]} 58... Nc7
{[%clk 0:15:38]} 59. Bd3 {[%clk 0:08:36]} 59... Nd5 {[%clk 0:15:26]} 60. Bd6
{[%clk 0:08:12]} 60... Kf7 {[%clk 0:15:35]} 61. Bc5 {[%clk 0:07:50]} 61... Nf4
{[%clk 0:14:45]} 62. Bc2 {[%clk 0:07:24]} 62... Ne2+ {[%clk 0:13:30]} 63. Kf3
{[%clk 0:07:28]} 63... Nc3 {[%clk 0:13:33]} 64. Kg3 {[%clk 0:07:28]} 64... Bc6
{[%clk 0:13:39]} 65. Kh3 {[%clk 0:06:25]} 65... Ke6 {[%clk 0:13:23]} 66. Bf5+
{[%clk 0:06:08]} 66... Ke5 {[%clk 0:13:40]} 67. Kg3 {[%clk 0:06:03]} 67... Be4
{[%clk 0:12:31]} 68. Kf2 {[%clk 0:05:39]} 68... Bxf5 {[%clk 0:12:49]} 69. gxf5
{[%clk 0:06:01]} 69... Ne4+ {[%clk 0:13:01]} 70. Kf3 {[%clk 0:05:44]} 70... Nxc5
{[%clk 0:13:18]} 71. bxc5 {[%clk 0:06:08]} 71... b4 {[%clk 0:13:37]} 72. Ke3
{[%clk 0:06:17]} 72... Kd5 0-1

[Variant "Standard"]
[Site "Europe Echecs"]

[Event "Championnat du monde jeunes U12F"]
[Date "2024.11.15"]
[White "Harutyunyan, Gabriela"]
[Black "Canossa, Elena"]
[WhiteElo "1730"]
[BlackElo "1482"]
[Round "1.34"]
[Result "1-0"]
[TimeControl "5400+30"]

1. e4 {[%clk 1:30:49]} 1... e5 {[%clk 1:30:52]} 2. Nf3 {[%clk 1:31:07]} 2... Nf6
{[%clk 1:31:10]} 3. Nxe5 {[%clk 1:31:09]} 3... d6 {[%clk 1:31:32]} 4. Nf3 {[%clk
1:31:09]} 4... Nxe4 {[%clk 1:31:43]} 5. Nc3 {[%clk 1:31:30]} 5... Nxc3 {[%clk
1:32:03]} 6. dxc3 {[%clk 1:31:52]} 6... Be7 {[%clk 1:32:19]} 7. Be3 {[%clk
1:31:08]} 7... a6 {[%clk 1:25:01]} 8. Qd2 {[%clk 1:26:07]} 8... Nc6 {[%clk
1:22:43]} 9. Bd3 {[%clk 1:23:28]} 9... f6 {[%clk 1:17:04]} 10. h4 {[%clk
1:18:19]} 10... Be6 {[%clk 1:12:42]} 11. Nd4 {[%clk 1:13:38]} 11... Nxd4 {[%clk
1:12:22]} 12. cxd4 {[%clk 1:13:14]} 12... Qd7 {[%clk 1:06:17]} 13. a3 {[%clk
1:11:14]} 13... d5 {[%clk 0:58:59]} 14. O-O-O {[%clk 1:10:05]} 14... O-O-O
{[%clk 0:47:38]} 15. Rhe1 {[%clk 1:07:45]} 15... Bd6 {[%clk 0:45:27]} 16. Qa5
{[%clk 1:06:19]} 16... Qc6 {[%clk 0:43:22]} 17. Kb1 {[%clk 1:02:43]} 17... Qb6
{[%clk 0:40:14]} 18. Qc3 Kb8 {[%clk 0:39:40]} 19. Be2 {[%clk 0:58:28]} 19... f5
{[%clk 0:38:40]} 20. g3 {[%clk 0:57:22]} 20... h6 {[%clk 0:37:13]} 21. Bf3
{[%clk 0:56:05]} 21... Rhg8 {[%clk 0:32:36]} 22. Bxh6 {[%clk 0:53:34]} 22...
Bxg3 {[%clk 0:30:43]} 23. Bg5 {[%clk 0:51:55]} 23... Bxf2 {[%clk 0:29:59]} 24.
Re2 {[%clk 0:51:41]} 24... Bxd4 {[%clk 0:29:04]} 25. Qxd4 {[%clk 0:51:09]} 25...
Qxd4 {[%clk 0:26:47]} 26. Rxd4 {[%clk 0:51:31]} 26... Rd6 {[%clk 0:24:54]} 27.
Bf4 {[%clk 0:51:33]} 27... Rc6 {[%clk 0:21:14]} 28. Bxd5 {[%clk 0:49:48]} 28...
Bxd5 {[%clk 0:21:30]} 29. Rxd5 {[%clk 0:50:12]} 29... g6 {[%clk 0:21:08]} 30.
Rd7 {[%clk 0:49:40]} 30... Rc4 {[%clk 0:15:42]} 31. Bg5 {[%clk 0:48:55]} 31...
Kc8 {[%clk 0:14:23]} 32. Red2 {[%clk 0:48:32]} 32... b6 {[%clk 0:13:00]} 33. b3
{[%clk 0:47:36]} 33... Re4 {[%clk 0:11:47]} 34. Bd8 {[%clk 0:47:05]} 34... c6
{[%clk 0:09:32]} 35. Bxb6 {[%clk 0:44:54]} 35... Rxh4 {[%clk 0:08:54]} 36. Rc7+
{[%clk 0:44:57]} 36... Kb8 {[%clk 0:09:03]} 37. Rdd7 {[%clk 0:45:12]} 37... g5
{[%clk 0:07:14]} 38. Rb7+ {[%clk 0:45:23]} 38... Ka8 {[%clk 0:06:40]} 39. Bc5
{[%clk 0:43:49]} 39... g4 {[%clk 0:05:57]} 40. Ra7+ {[%clk 0:44:11]} 40... Kb8
{[%clk 0:06:11]} 41. Bd6+ {[%clk 0:44:33]} 41... Kc8 {[%clk 0:06:18]} 42. Rdc7+
{[%clk 0:44:56]} 42... Kb8 {[%clk 0:05:55]} 43. Rcb7+ {[%clk 0:44:49]} 43... Kc8
{[%clk 0:06:06]} 44. Rb8# {[%clk 0:45:15]} 1-0

[Variant "Standard"]
[Site "Europe Echecs"]